Workbook

Sheet Calculator
B1: UoY Travel Carbon Calculator | F1: Version: 3.0. - Apr24
F2: Originally created by Chris West (SEI York), data update by Mark Clough (DTEF - UoY)
F3: Defra Conversion Factors used: 2023 (updated 28th June 2023)
B4: INSTRUCTIONS
B5: Use the rows below to select the number of people, travel mode, and distance
B6: Details can also be added for overnight accommodation by location
B7: Emissions associated with these entries will be calculated and a total provided
B8: A 'notes' column allows additional details associated with the activity to be recorded (e.g. for helping with alignment between project activities etc). Notes are discretionary (i.e. use if helpful)
B9: Five rows are provided under each entry. To add more rows select a cell within a row in a section you wish to duplicate and double-click the button above (Click to Duplicate Selected Row)
B10: At the bottom of the sheet the user can adjust the offsetting price per tonne (default = £77.88 for approximate EAUC Carbon Coalition offsetting).
B11: For help with estimating flight distances, try: | D11: http://www.webflyer.com/travel/mileage_calculator/
B12: For help with estimating road and rail distances, try: | D12: https://www.joaoleitao.com/distance-calculator/
B14: EMISSIONS TOTAL (kg CO2e) | C14: =SUM(G17:G80) -> 0
B15: Offsetting cost | C15: =$C$14/1000*$C$82 -> 0
F16: Do not edit this column data | G16: Do not edit this column data
B17: FLIGHTS
B18: No. of Persons Travelling | C18: Type | D18: Class | E18: Estimated Distance (km) | F18: Emissions (kg CO2e) per passenger km | G18: Emissions (kg CO2e) Subtotal | H18: Notes (e.g. add destinations for travel for record-keeping)
F19: =_xlfn.IFNA(INDEX('Current Data Sheet'!$B$4:$F$7,MATCH(Calculator!$C19,'Current Data Sheet'!$A$4:$A$7,0),MATCH(Calculator!$D19,'Current Data Sheet'!$B$3:$F$3,0)),0) -> 0 | G19: =B19*F19*E19 -> 0
F20: =_xlfn.IFNA(INDEX('Current Data Sheet'!$B$4:$F$7,MATCH(Calculator!$C20,'Current Data Sheet'!$A$4:$A$7,0),MATCH(Calculator!$D20,'Current Data Sheet'!$B$3:$F$3,0)),0) -> 0 | G20: 0
F21: =_xlfn.IFNA(INDEX('Current Data Sheet'!$B$4:$F$7,MATCH(Calculator!$C21,'Current Data Sheet'!$A$4:$A$7,0),MATCH(Calculator!$D21,'Current Data Sheet'!$B$3:$F$3,0)),0) -> 0 | G21: 0
F22: =_xlfn.IFNA(INDEX('Current Data Sheet'!$B$4:$F$7,MATCH(Calculator!$C22,'Current Data Sheet'!$A$4:$A$7,0),MATCH(Calculator!$D22,'Current Data Sheet'!$B$3:$F$3,0)),0) -> 0 | G22: 0
F23: =_xlfn.IFNA(INDEX('Current Data Sheet'!$B$4:$F$7,MATCH(Calculator!$C23,'Current Data Sheet'!$A$4:$A$7,0),MATCH(Calculator!$D23,'Current Data Sheet'!$B$3:$F$3,0)),0) -> 0 | G23: 0
F24: =_xlfn.IFNA(INDEX('Current Data Sheet'!$B$4:$F$7,MATCH(Calculator!$C24,'Current Data Sheet'!$A$4:$A$7,0),MATCH(Calculator!$D24,'Current Data Sheet'!$B$3:$F$3,0)),0) -> 0 | G24: 0
B26: RAIL
B27: No. of Persons Travelling | C27: Type | E27: Estimated Distance (km) | F27: Emissions (kg CO2e) per passenger km | G27: Emissions (kg CO2e) Subtotal | H27: Notes (e.g. add destinations for travel for record-keeping)
F28: =_xlfn.SINGLE(_xlfn.IFNA(VLOOKUP(C28,'Current Data Sheet'!$A$24:$B$27,2,0),0)) -> 0 | G28: =B28*F28*E28 -> 0
F29: =_xlfn.SINGLE(_xlfn.IFNA(VLOOKUP(C29,'Current Data Sheet'!$A$24:$B$27,2,0),0)) -> 0 | G29: 0
F30: =_xlfn.SINGLE(_xlfn.IFNA(VLOOKUP(C30,'Current Data Sheet'!$A$24:$B$27,2,0),0)) -> 0 | G30: 0
F31: =_xlfn.SINGLE(_xlfn.IFNA(VLOOKUP(C31,'Current Data Sheet'!$A$24:$B$27,2,0),0)) -> 0 | G31: 0
F32: =_xlfn.SINGLE(_xlfn.IFNA(VLOOKUP(C32,'Current Data Sheet'!$A$24:$B$27,2,0),0)) -> 0 | G32: 0
B34: BUS
B35: No. of Persons Travelling | C35: Type | E35: Estimated Distance (km) | F35: Emissions (kg CO2e) per passenger km | G35: Emissions (kg CO2e) Subtotal | H35: Notes (e.g. add destinations for travel for record-keeping)
F36: =_xlfn.IFNA(VLOOKUP(C36,'Current Data Sheet'!$A$30:$B$33,2,0),0) -> 0 | G36: =B36*F36*E36 -> 0
F37: =_xlfn.IFNA(VLOOKUP(C37,'Current Data Sheet'!$A$30:$B$33,2,0),0) -> 0 | G37: =B37*F37*E37 -> 0
F38: =_xlfn.SINGLE(_xlfn.IFNA(VLOOKUP(C38,'Current Data Sheet'!$A$30:$B$33,2,0),0)) -> 0 | G38: 0
F39: =_xlfn.SINGLE(_xlfn.IFNA(VLOOKUP(C39,'Current Data Sheet'!$A$30:$B$33,2,0),0)) -> 0 | G39: 0
F40: =_xlfn.SINGLE(_xlfn.IFNA(VLOOKUP(C40,'Current Data Sheet'!$A$30:$B$33,2,0),0)) -> 0 | G40: 0
B42: CAR
B43: No. of Persons Travelling | C43: Type | D43: Passengers per car | E43: Estimated Distance (km) | F43: Emissions (kg CO2e) per passenger km | G43: Emissions (kg CO2e) Subtotal | H43: Notes (e.g. add destinations for travel for record-keeping)
F44: =_xlfn.SINGLE(_xlfn.IFNA((VLOOKUP(C44,'Current Data Sheet'!$A$14:$B$21,2,0)/D44),0)) -> 0 | G44: =B44*F44*E44 -> 0
F45: =_xlfn.SINGLE(_xlfn.IFNA((VLOOKUP(C45,'Current Data Sheet'!$A$14:$B$21,2,0)/D45),0)) -> 0 | G45: 0
F46: =_xlfn.SINGLE(_xlfn.IFNA((VLOOKUP(C46,'Current Data Sheet'!$A$14:$B$21,2,0)/D46),0)) -> 0 | G46: 0
F47: =_xlfn.SINGLE(_xlfn.IFNA((VLOOKUP(C47,'Current Data Sheet'!$A$14:$B$21,2,0)/D47),0)) -> 0 | G47: 0
F48: =_xlfn.SINGLE(_xlfn.IFNA((VLOOKUP(C48,'Current Data Sheet'!$A$14:$B$21,2,0)/D48),0)) -> 0 | G48: 0
B50: TAXI
B51: No. of Persons Travelling | C51: Type | E51: Estimated Distance (km) | F51: Emissions (kg CO2e) per passenger km | G51: Emissions (kg CO2e) Subtotal | H51: Notes (e.g. add destinations for travel for record-keeping)
F52: =_xlfn.SINGLE(_xlfn.IFNA(VLOOKUP(C52,'Current Data Sheet'!$A$36:$B$37,2,0),0)) -> 0 | G52: =B52*F52*E52 -> 0
F53: =_xlfn.SINGLE(_xlfn.IFNA(VLOOKUP(C53,'Current Data Sheet'!$A$36:$B$37,2,0),0)) -> 0 | G53: 0
F54: =_xlfn.SINGLE(_xlfn.IFNA(VLOOKUP(C54,'Current Data Sheet'!$A$36:$B$37,2,0),0)) -> 0 | G54: 0
F55: =_xlfn.SINGLE(_xlfn.IFNA(VLOOKUP(C55,'Current Data Sheet'!$A$36:$B$37,2,0),0)) -> 0 | G55: 0
F56: =_xlfn.SINGLE(_xlfn.IFNA(VLOOKUP(C56,'Current Data Sheet'!$A$36:$B$37,2,0),0)) -> 0 | G56: 0
B58: FERRY
B59: No. of Persons Travelling | C59: Type | E59: Estimated Distance (km) | F59: Emissions (kg CO2e) per passenger km | G59: Emissions (kg CO2e) Subtotal | H59: Notes (e.g. add destinations for travel for record-keeping)
F60: =_xlfn.SINGLE(_xlfn.IFNA(VLOOKUP(C60,'Current Data Sheet'!$A$10:$B$11,2,0),0)) -> 0 | G60: =B60*F60*E60 -> 0
F61: =_xlfn.SINGLE(_xlfn.IFNA(VLOOKUP(C61,'Current Data Sheet'!$A$10:$B$11,2,0),0)) -> 0 | G61: 0
F62: =_xlfn.SINGLE(_xlfn.IFNA(VLOOKUP(C62,'Current Data Sheet'!$A$10:$B$11,2,0),0)) -> 0 | G62: 0
F63: =_xlfn.SINGLE(_xlfn.IFNA(VLOOKUP(C63,'Current Data Sheet'!$A$10:$B$11,2,0),0)) -> 0 | G63: 0
F64: =_xlfn.SINGLE(_xlfn.IFNA(VLOOKUP(C64,'Current Data Sheet'!$A$10:$B$11,2,0),0)) -> 0 | G64: 0
B66: MOTORBIKE
B67: No. of Persons Travelling | D67: Passengers per bike | E67: Estimated Distance (km) | F67: Emissions (kg CO2e) per passenger km | G67: Emissions (kg CO2e) Subtotal | H67: Notes (e.g. add destinations for travel for record-keeping)
F68: =IFERROR('Current Data Sheet'!$B$40/D68,0) -> 0 | G68: =B68*F68*E68 -> 0
F69: =IFERROR('Current Data Sheet'!$B$40/D69,0) -> 0 | G69: 0
F70: =IFERROR('Current Data Sheet'!$B$40/D70,0) -> 0 | G70: 0
F71: =IFERROR('Current Data Sheet'!$B$40/D71,0) -> 0 | G71: 0
F72: =IFERROR('Current Data Sheet'!$B$40/D72,0) -> 0 | G72: 0
B74: ACCOMODATION
B75: No. of Rooms | D75: Location | E75: Number of nights | F75: Emissions (kg CO2e) per room | G75: Emissions (kg CO2e) Subtotal | H75: Notes (e.g. add destinations for travel for record-keeping)
F76: =_xlfn.SINGLE(_xlfn.IFNA(VLOOKUP(Calculator!D76,'Current Data Sheet'!$A$43:$B$97,2,0),0)) -> 0 | G76: =B76*F76*E76 -> 0
F77: =_xlfn.SINGLE(_xlfn.IFNA(VLOOKUP(Calculator!D77,'Current Data Sheet'!$A$43:$B$97,2,0),0)) -> 0 | G77: 0
F78: =_xlfn.SINGLE(_xlfn.IFNA(VLOOKUP(Calculator!D78,'Current Data Sheet'!$A$43:$B$97,2,0),0)) -> 0 | G78: 0
F79: =_xlfn.SINGLE(_xlfn.IFNA(VLOOKUP(Calculator!D79,'Current Data Sheet'!$A$43:$B$97,2,0),0)) -> 0 | G79: 0
F80: =_xlfn.SINGLE(_xlfn.IFNA(VLOOKUP(Calculator!D80,'Current Data Sheet'!$A$43:$B$97,2,0),0)) -> 0 | G80: 0
B82: CARBON PRICE PER TONNE: | C82: 77.88

Sheet Current Data Sheet
A1: Defra Conversion Factors 2023: https://www.gov.uk/government/publications/greenhouse-gas-reporting-conversion-factors-2023
B2: Total: | H2: Direct: | O2: WTT:
A3: Flights | B3: Average passenger | C3: Economy class | D3: Premium economy class | E3: Business class | F3: First class | H3: Flights | I3: Average passenger | J3: Economy class | K3: Premium economy class | L3: Business class | M3: First class | O3: Flights - WTT | P3: Average passenger | Q3: Economy class | R3: Premium economy class | S3: Business class | T3: First class
A4: Domestic, to/from UK | B4: =I4+P4 -> 0.3060767852 | C4: 0.3060767852 | D4: 0.3060767852 | E4: 0.3060767852 | F4: 0.3060767852 | H4: Domestic, to/from UK | I4: 0.2725767852 | J4: =I4 -> 0.2725767852 | K4: =I4 -> 0.2725767852 | L4: =I4 -> 0.2725767852 | M4: =I4 -> 0.2725767852 | O4: Domestic, to/from UK | P4: 0.0335 | Q4: =P4 -> 0.0335 | R4: =P4 -> 0.0335 | S4: =P4 -> 0.0335 | T4: =P4 -> 0.0335
A5: Short-haul, to/from UK | B5: =I5+P5 -> 0.2087771396 | C5: 0.2053593544 | D5: 0.3080328779 | E5: 0.3080328779 | F5: 0.3080328779 | H5: Short-haul, to/from UK | I5: 0.1859171396 | J5: 0.1828693544 | K5: =L5 -> 0.2743028779 | L5: 0.2743028779 | M5: =L5 -> 0.2743028779 | O5: Short-haul, to/from UK | P5: 0.02286 | Q5: 0.02249 | R5: =S5 -> 0.03373 | S5: 0.03373 | T5: =S5 -> 0.03373
A6: Long-haul, to/from UK | B6: =I6+P6 -> 0.2934106295 | C6: 0.2247182805 | D6: 0.3595251933 | E6: 0.6516569302 | F6: 0.8988430295 | H6: Long-haul, to/from UK | I6: 0.2612806295 | J6: 0.2001082805 | K6: 0.3201551933 | L6: 0.5802869302 | M6: 0.8004030295 | O6: Long-haul, to/from UK | P6: 0.03213 | Q6: 0.02461 | R6: 0.03937 | S6: 0.07137 | T6: 0.09844
A7: International, to/from non-UK | B7: =I7+P7 -> 0.1974237839 | C7: 0.1512033303 | D7: 0.2419094215 | E7: 0.4384632054 | F7: 0.6047724 | H7: International, to/from non-UK | I7: 0.1758037839 | J7: 0.1346433303 | K7: 0.2154194215 | L7: 0.3904432054 | M7: 0.5385424 | O7: International, to/from non-UK | P7: 0.02162 | Q7: 0.01656 | R7: 0.02649 | S7: 0.04802 | T7: 0.06623
A9: Ferry | H9: Ferry | O9: Ferry - WTT
A10: Foot passenger | B10: =I10+P10 -> 0.02295314288 | H10: Foot passenger | I10: 0.01871081396 | O10: Foot passenger | P10: 0.004242328918
A11: Car passenger | B11: =I11+P11 -> 0.1586531676 | H11: Car passenger | I11: 0.1293288754 | O11: Car passenger | P11: 0.02932429212
A13: Cars (average car) | H13: Cars (average car) | O13: Cars (average car) - WTT
A14: Diesel | B14: =I14+P14 -> 0.2112764489 | H14: Diesel | I14: 0.1698264489 | O14: Diesel | P14: 0.04145
A15: Petrol | B15: =I15+P15 -> 0.2094185342 | H15: Petrol | I15: 0.1639085342 | O15: Petrol | P15: 0.04551
A16: Hybrid | B16: 0.1500685879 | H16: Hybrid | I16: 0.1189785879 | O16: Hybrid | P16: 0.03109
A17: CNG | B17: 0.2109341973 | H17: CNG | I17: 0.1750441973 | O17: CNG | P17: 0.03589
A18: LPG | B18: 0.2204305973 | H18: LPG | I18: 0.1970405973 | O18: LPG | P18: 0.02339
A19: Plug-in Hybrid EV | B19: 0.0902821302 | H19: PHEV | I19: 0.0658821302 | O19: PHEV | P19: 0.0244
A20: Battery EV | B20: 0.01215 | H20: BEV | I20: 0 | O20: BEV | P20: 0.01215
A21: Unknown | B21: 0.2102985879 | H21: Unknown | I21: 0.1666385879 | O21: Unknown | P21: 0.04366
A23: Rail | H23: Rail | O23: Rail - WTT
A24: National rail | B24: =I24+P24 -> 0.04438296376 | H24: National rail | I24: 0.03546296376 | O24: National rail | P24: 0.00892
A25: International rail | B25: 0.005619077852 | H25: International rail | I25: 0.004459077852 | O25: International rail | P25: 0.00116
A26: Light rail and tram | B26: 0.03605326711 | H26: Light rail and tram | I26: 0.02860326711 | O26: Light rail and tram | P26: 0.00745
A27: London Underground | B27: 0.03504206711 | H27: London Underground | I27: 0.02780206711 | O27: London Underground | P27: 0.00724
A29: Bus | H29: Bus | O29: Bus - WTT
A30: Local bus (not London) | B30: =I30+P30 -> 0.1472327691 | H30: Local bus (not London) | I30: 0.1183627691 | O30: Local bus (not London) | P30: 0.02887
A31: Local London bus | B31: 0.09748250872 | H31: Local London bus | I31: 0.07832250872 | O31: Local London bus | P31: 0.01916
A32: Average local bus | B32: 0.1270803946 | H32: Average local bus | I32: 0.1021503946 | O32: Average local bus | P32: 0.02493
A33: Coach | B33: 0.03374140134 | H33: Coach | I33: 0.02718140134 | O33: Coach | P33: 0.00656
A35: Taxis | H35: Taxis | O35: Taxis - WTT
A36: Regular taxi | B36: =I36+P36 -> 0.1855857972 | H36: Regular taxi | I36: 0.1486149259 | O36: Regular taxi | P36: 0.03697087123
A37: Black cab | B37: 0.2549206916 | H37: Black cab | I37: 0.2040246684 | O37: Black cab | P37: 0.05089602317
A39: Motorbike (average) | H39: Motorbike (average) | O39: Motorbike (average) - WTT
A40: Motorbike (average) | B40: =I40+P40 -> 0.1432350053 | H40: Motorbike (average) | I40: 0.1136742644 | O40: Motorbike (average) | P40: 0.02956074086
A42: Hotel | C42: = No 2023 figures so used 2021 figures
A43: UK | B43: 10.4
A44: Unknown/Other | B44: 10.4
A45: Argentina | B45: 56
A46: Australia | B46: 35
A47: Austria | B47: 13.9
A48: Belgium | B48: 12.2
A49: Brazil | B49: 8.7
A50: Canada | B50: 7.4
A51: Chile | B51: 27.6
A52: China | B52: 53.5
A53: Colombia | B53: 14.7
A54: Costa Rica | B54: 4.7
A55: Czech Republic | B55: 36.2
A56: Egypt | B56: 44.2
A57: Fiji | B57: 47.8
A58: Finland
A59: France | B59: 6.7
A60: Germany | B60: 13.2
A61: Greece | B61: 43
A62: Hong Kong, China | B62: 51.5
A63: India | B63: 58.9
A64: Indonesia | B64: 62.7
A65: Ireland | B65: 25
A66: Israel | B66: 54
A67: Italy | B67: 14.3
A68: Japan | B68: 39
A69: Jordan | B69: 68.9
A70: Korea | B70: 55.8
A71: Macau, China | B71: 75.6
A72: Malaysia | B72: 61.5
A73: Maldives | B73: 152.2
A74: Mexico | B74: 19.3
A75: Netherlands | B75: 14.8
A76: New Zealand | B76: 14.8
A77: Oman | B77: 90.3
A78: Panama | B78: 90.3
A79: Peru | B79: 22.5
A80: Philippines | B80: 54.3
A81: Poland | B81: 33.2
A82: Portugal | B82: 19
A83: Qatar | B83: 86.2
A84: Romania | B84: 86.2
A85: Russian Federation | B85: 24.2
A86: Saudi Arabia | B86: 106.4
A87: Singapore | B87: 24.5
A88: Slovak Republic | B88: 24.5
A89: South Africa | B89: 51.4
A90: Spain | B90: 7
A91: Switzerland | B91: 6.6
A92: Taiwan, China | B92: 77.3
A93: Thailand | B93: 43.4
A94: Turkey | B94: 32.1
A95: United Arab Emirates | B95: 63.8
A96: United States | B96: 16.1
A97: Vietnam | B97: 38.5
C99: = No 2023 figures so used 2021 figures

Sheet Historic Data Sheet
A1: Defra Conversion Factors 2022: https://www.gov.uk/government/publications/greenhouse-gas-reporting-conversion-factors-2022
B2: Total: | H2: Direct: | O2: WTT:
A3: Flights | B3: Average passenger | C3: Economy class | D3: Premium economy class | E3: Business class | F3: First class | H3: Flights | I3: Average passenger | J3: Economy class | K3: Premium economy class | L3: Business class | M3: First class | O3: Flights - WTT | P3: Average passenger | Q3: Economy class | R3: Premium economy class | S3: Business class | T3: First class
A4: Domestic, to/from UK | B4: =I4+P4 -> 0.27278 | C4: 0.27278 | D4: 0.27278 | E4: 0.27278 | F4: 0.27278 | H4: Domestic, to/from UK | I4: 0.24587 | J4: =I4 -> 0.24587 | K4: =I4 -> 0.24587 | L4: =I4 -> 0.24587 | M4: =I4 -> 0.24587 | O4: Domestic, to/from UK | P4: 0.02691 | Q4: =P4 -> 0.02691 | R4: =P4 -> 0.02691 | S4: =P4 -> 0.02691 | T4: =P4 -> 0.02691
A5: Short-haul, to/from UK | B5: 0.17034 | C5: 0.16756 | D5: 0.25132 | E5: 0.25132 | F5: 0.25132 | H5: Short-haul, to/from UK | I5: 0.15353 | J5: 0.15102 | K5: =L5 -> 0.22652 | L5: 0.22652 | M5: =L5 -> 0.22652 | O5: Short-haul, to/from UK | P5: 0.01681 | Q5: 0.01654 | R5: =S5 -> 0.0248 | S5: 0.0248 | T5: =S5 -> 0.0248
A6: Long-haul, to/from UK | B6: 0.21423 | C6: 0.16406 | D6: 0.2625 | E6: 0.47578 | F6: 0.65624 | H6: Long-haul, to/from UK | I6: 0.19309 | J6: 0.14787 | K6: 0.23659 | L6: 0.42882 | M6: 0.59147 | O6: Long-haul, to/from UK | P6: 0.02114 | Q6: 0.01619 | R6: 0.02591 | S6: 0.04696 | T6: 0.06477
A7: International, to/from non-UK | B7: 0.20373 | C7: 0.156025 | D7: 0.24964 | E7: 0.45247 | F7: 0.6241 | H7: International, to/from non-UK | I7: 0.18362 | J7: 0.140625 | K7: 0.225 | L7: 0.40781 | M7: 0.56251 | O7: International, to/from non-UK | P7: 0.02011 | Q7: 0.0154 | R7: 0.02464 | S7: 0.04466 | T7: 0.06159
A9: Ferry | H9: Ferry | O9: Ferry - WTT
A10: Foot passenger | B10: =I10+P10 -> 0.02295 | H10: Foot passenger | I10: 0.01874 | O10: Foot passenger | P10: 0.00421
A11: Car passenger | B11: 0.15861 | H11: Car passenger | I11: 0.12952 | O11: Car passenger | P11: 0.02909
A13: Cars (average car) | H13: Cars (average car) | O13: Cars (average car) - WTT
A14: Diesel | B14: =I14+P14 -> 0.211864 | H14: Diesel | I14: 0.170824 | O14: Diesel | P14: 0.04104
A15: Petrol | B15: 0.21933 | H15: Petrol | I15: 0.17048 | O15: Petrol | P15: 0.04885
A16: Hybrid | B16: 0.15136 | H16: Hybrid | I16: 0.12004 | O16: Hybrid | P16: 0.03132
A17: CNG | B17: 0.21235 | H17: CNG | I17: 0.17517 | O17: CNG | P17: 0.03718
A18: LPG | B18: 0.22114 | H18: LPG | I18: 0.19775 | O18: LPG | P18: 0.02339
A19: Plug-in Hybrid EV | B19: 0.12006 | H19: PHEV | I19: 0.09349 | O19: PHEV | P19: 0.02657
A20: Battery EV | B20: 0.06566 | H20: BEV | I20: 0.0514 | O20: BEV | P20: 0.01426
A21: Unknown | B21: 0.21575 | H21: Unknown | I21: 0.17067 | O21: Unknown | P21: 0.04508
A23: Rail | H23: Rail | O23: Rail - WTT
A24: National rail | B24: =I24+P24 -> 0.04441 | H24: National rail | I24: 0.03549 | O24: National rail | P24: 0.00892
A25: International rail | B25: 0.00562 | H25: International rail | I25: 0.00446 | O25: International rail | P25: 0.00116
A26: Light rail and tram | B26: 0.03606 | H26: Light rail and tram | I26: 0.02861 | O26: Light rail and tram | P26: 0.00745
A27: London Underground | B27: 0.03505 | H27: London Underground | I27: 0.02781 | O27: London Underground | P27: 0.00724
A29: Bus | H29: Bus | O29: Bus - WTT
A30: Local bus (not London) | B30: =I30+P30 -> 0.13646 | H30: Local bus (not London) | I30: 0.10778 | O30: Local bus (not London) | P30: 0.02868
A31: Local London bus | B31: 0.09821 | H31: Local London bus | I31: 0.07936 | O31: Local London bus | P31: 0.01885
A32: Average local bus | B32: 0.12144 | H32: Average local bus | I32: 0.0965 | O32: Average local bus | P32: 0.02494
A33: Coach | B33: 0.03379 | H33: Coach | I33: 0.02733 | O33: Coach | P33: 0.00646
A35: Taxis | H35: Taxis | O35: Taxis - WTT
A36: Regular taxi | B36: =I36+P36 -> 0.18508 | H36: Regular taxi | I36: 0.14876 | O36: Regular taxi | P36: 0.03632
A37: Black cab | B37: 0.25416 | H37: Black cab | I37: 0.20416 | O37: Black cab | P37: 0.05
A39: Motorbike (average) | H39: Motorbike (average) | O39: Motorbike (average) - WTT
A40: Motorbike (average) | B40: =I40+P40 -> 0.14489 | H40: Motorbike (average) | I40: 0.11355 | O40: Motorbike (average) | P40: 0.03134
A42: Hotel | C42: = No 2023 figures so used 2022 figures
A43: UK | B43: 10.4
A44: Unknown/Other | B44: 10.4
A45: Argentina | B45: 56
A46: Australia | B46: 35
A47: Austria | B47: 13.9
A48: Belgium | B48: 12.2
A49: Brazil | B49: 8.7
A50: Canada | B50: 7.4
A51: Chile | B51: 27.6
A52: China | B52: 53.5
A53: Colombia | B53: 14.7
A54: Costa Rica | B54: 4.7
A55: Czech Republic | B55: 36.2
A56: Egypt | B56: 44.2
A57: Fiji | B57: 47.8
A58: France | B58: 6.7
A59: Germany | B59: 13.2
A60: Greece | B60: 43
A61: Hong Kong, China | B61: 51.5
A62: India | B62: 58.9
A63: Indonesia | B63: 62.7
A64: Ireland | B64: 25
A65: Israel | B65: 54
A66: Italy | B66: 14.3
A67: Japan | B67: 39
A68: Jordan | B68: 68.9
A69: Korea | B69: 55.8
A70: Macau, China | B70: 75.6
A71: Malaysia | B71: 61.5
A72: Maldives | B72: 152.2
A73: Mexico | B73: 19.3
A74: Netherlands | B74: 14.8
A75: New Zealand | B75: 10.4
A76: Oman | B76: 90.3
A77: Panama | B77: 22.1
A78: Peru | B78: 22.5
A79: Philippines | B79: 54.3
A80: Poland | B80: 33.2
A81: Portugal | B81: 19
A82: Qatar | B82: 86.2
A83: Romania | B83: 25.5
A84: Russian Federation | B84: 24.2
A85: Saudi Arabia | B85: 106.4
A86: Singapore | B86: 24.5
A87: Slovak Republic | B87: 19.1
A88: South Africa | B88: 51.4
A89: Spain | B89: 7
A90: Switzerland | B90: 6.6
A91: Taiwan, China | B91: 77.3
A92: Thailand | B92: 43.4
A93: Turkey | B93: 32.1
A94: United Arab Emirates | B94: 63.8
A95: United States | B95: 16.1
A96: Vietnam | B96: 38.5
C98: = No 2023 figures so used 2022 figures
A102: 2021 | B102: Defra Conversion Factors 2021: https://www.gov.uk/government/publications/greenhouse-gas-reporting-conversion-factors-2021
B103: Total: | H103: Direct: | O103: WTT:
A104: Flights | B104: Average passenger | C104: Economy class | D104: Premium economy class | E104: Business class | F104: First class | H104: Flights | I104: Average passenger | J104: Economy class | K104: Premium economy class | L104: Business class | M104: First class | O104: Flights - WTT | P104: Average passenger | Q104: Economy class | R104: Premium economy class | S104: Business class | T104: First class
A105: Domestic, to/from UK | B105: =I105+P105 -> 0.27278 | C105: 0.27278 | D105: 0.27278 | E105: 0.27278 | F105: 0.27278 | H105: Domestic, to/from UK | I105: 0.24587 | J105: 0.24587 | K105: 0.24587 | L105: 0.24587 | M105: 0.24587 | O105: Domestic, to/from UK | P105: 0.02691 | Q105: 0.02691 | R105: 0.02691 | S105: 0.02691 | T105: 0.02691
A106: Short-haul, to/from UK | B106: =I106+P106 -> 0.17034 | C106: 0.16756 | D106: 0.25132 | E106: 0.25132 | F106: 0.25132 | H106: Short-haul, to/from UK | I106: 0.15353 | J106: 0.15102 | K106: 0.22652 | L106: 0.22652 | M106: 0.22652 | O106: Short-haul, to/from UK | P106: 0.01681 | Q106: 0.01654 | R106: 0.0248 | S106: 0.0248 | T106: 0.0248
A107: Long-haul, to/from UK | B107: =I107+P107 -> 0.21423 | C107: 0.16406 | D107: 0.2625 | E107: 0.47578 | F107: 0.65624 | H107: Long-haul, to/from UK | I107: 0.19309 | J107: 0.14787 | K107: 0.23659 | L107: 0.42882 | M107: 0.59147 | O107: Long-haul, to/from UK | P107: 0.02114 | Q107: 0.01619 | R107: 0.02591 | S107: 0.04696 | T107: 0.06477
A108: International, to/from non-UK | B108: =I108+P108 -> 0.20373 | C108: 0.156025 | D108: 0.24964 | E108: 0.45247 | F108: 0.6241 | H108: International, to/from non-UK | I108: 0.18362 | J108: 0.140625 | K108: 0.225 | L108: 0.40781 | M108: 0.56251 | O108: International, to/from non-UK | P108: 0.02011 | Q108: 0.0154 | R108: 0.02464 | S108: 0.04466 | T108: 0.06159
A110: Ferry | H110: Ferry | O110: Ferry - WTT
A111: Foot passenger | B111: =I111+P111 -> 0.022946 | H111: Foot passenger | I111: 0.018738 | O111: Foot passenger | P111: 0.004208
A112: Car passenger | B112: 0.158604 | H112: Car passenger | I112: 0.129517 | O112: Car passenger | P112: 0.029087
A114: Cars (average car) | H114: Cars (average car) | O114: Cars (average car) - WTT
A115: Diesel | B115: =I115+P115 -> 0.20947 | H115: Diesel | I115: 0.16843 | O115: Diesel | P115: 0.04104
A116: Petrol | B116: 0.32938 | H116: Petrol | I116: 0.28053 | O116: Petrol | P116: 0.04885
A117: Hybrid | B117: 0.22366 | H117: Hybrid | I117: 0.19234 | O117: Hybrid | P117: 0.03132
A118: CNG | B118: 0.3209 | H118: CNG | I118: 0.28362 | O118: CNG | P118: 0.03728
A119: LPG | B119: 0.34248 | H119: LPG | I119: 0.31909 | O119: LPG | P119: 0.02339
A120: Plug-in Hybrid EV | B120: 0.18258 | H120: PHEV | I120: 0.15601 | O120: PHEV | P120: 0.02657
A121: Battery EV | B121: 0.1024 | H121: BEV | I121: 0.08814 | O121: BEV | P121: 0.01426
A122: Unknown | B122: 0.32104 | H122: Unknown | I122: 0.27596 | O122: Unknown | P122: 0.04508
A124: Rail | H124: Rail | O124: Rail - WTT
A125: National rail | B125: =I125+P125 -> 0.04282 | H125: National rail | I125: 0.03549 | O125: National rail | P125: 0.00733
A126: International rail | B126: 0.0052 | H126: International rail | I126: 0.00446 | O126: International rail | P126: 0.00074
A127: Light rail and tram | B127: 0.03279 | H127: Light rail and tram | I127: 0.02813 | O127: Light rail and tram | P127: 0.00466
A128: London Underground | B128: 0.03242 | H128: London Underground | I128: 0.02781 | O128: London Underground | P128: 0.00461
A130: Bus | H130: Bus | O130: Bus - WTT
A131: Local bus (not London) | B131: =I131+P131 -> 0.14642 | H131: Local bus (not London) | I131: 0.11774 | O131: Local bus (not London) | P131: 0.02868
A132: Local London bus | B132: 0.09603 | H132: Local London bus | I132: 0.07718 | O132: Local London bus | P132: 0.01885
A133: Average local bus | B133: 0.12721 | H133: Average local bus | I133: 0.10227 | O133: Average local bus | P133: 0.02494
A134: Coach | B134: 0.0333 | H134: Coach | I134: 0.02684 | O134: Coach | P134: 0.00646
A136: Taxis | H136: Taxis | O136: Taxis - WTT
A137: Regular taxi | B137: =I137+P137 -> 0.18508 | H137: Regular taxi | I137: 0.14876 | O137: Regular taxi | P137: 0.03632
A138: Black cab | B138: 0.25416 | H138: Black cab | I138: 0.20416 | O138: Black cab | P138: 0.05
A140: Motorbike (average) | H140: Motorbike (average) | O140: Motorbike (average) - WTT
A141: Motorbike (average) | B141: =I141+P141 -> 0.14489 | H141: Motorbike (average) | I141: 0.11355 | O141: Motorbike (average) | P141: 0.03134
A143: Hotel
A144: UK | B144: 13.9
A145: Unknown/Other | B145: 13.9
A146: Argentina | B146: 56
A147: Australia | B147: 42.6
A148: Austria | B148: 13.9
A149: Belgium | B149: 10.9
A150: Brazil | B150: 12.3
A151: Canada | B151: 16.1
A152: Chile | B152: 30.5
A153: China | B153: 62.9
A154: Colombia | B154: 13.5
A155: Costa Rica | B155: 7.5
A156: Czech Republic | B156: 36.2
A157: Egypt | B157: 56.5
A158: Fiji | B158: 47.8
A159: France | B159: 6.5
A160: Germany | B160: 17
A161: Greece | B161: 43
A162: Hong Kong, China | B162: 65.9
A163: India | B163: 75.5
A164: Indonesia | B164: 89.1
A165: Ireland | B165: 25
A166: Israel | B166: 54
A167: Italy | B167: 20.2
A168: Japan | B168: 60.6
A169: Jordan | B169: 62.4
A170: Korea | B170: 61.2
A171: Macau, China | B171: 75.6
A172: Malaysia | B172: 83
A173: Maldives | B173: 183.3
A174: Mexico | B174: 25.9
A175: Netherlands | B175: 20.9
A176: New Zealand | B176: 10.4
A177: Panama | B177: 22.1
A178: Peru | B178: 22.5
A179: Philippines | B179: 44.2
A180: Poland | B180: 33.2
A181: Portugal | B181: 26
A182: Qatar | B182: 126.8
A183: Romania | B183: 25.5
A184: Russian Federation | B184: 31.8
A185: Saudi Arabia | B185: 114.5
A186: Singapore | B186: 37.8
A187: Slovak Republic | B187: 19.1
A188: South Africa | B188: 61
A189: Spain | B189: 18.7
A190: Switzerland | B190: 7.4
A191: Taiwan, China | B191: 77.3
A192: Thailand | B192: 51
A193: Turkey | B193: 33.6
A194: United Arab Emirates | B194: 114.4
A195: United States | B195: 19.7
A196: Vietnam | B196: 51.8

Sheet Dropdown fields
A1: Flight Type | B1: Flight Class | C1: Ferry Type | D1: Car Type | E1: Rail Type | F1: Bus Type | G1: Taxis | H1: Hotel Location | I1: Persons
A2: Domestic, to/from UK | B2: Average passenger | C2: Foot passenger | D2: Diesel | E2: National rail | F2: Local bus (not London) | G2: Regular taxi | H2: UK | I2: 1
A3: Short-haul, to/from UK | B3: Economy class | C3: Car passenger | D3: Petrol | E3: International rail | F3: Local London bus | G3: Black cab | H3: Unknown/Other | I3: 2
A4: Long-haul, to/from UK | B4: Premium economy class | D4: Hybrid | E4: Light rail and tram | F4: Average local bus | H4: Argentina | I4: 3
A5: International, to/from non-UK | B5: Business class | D5: Compressed Natural Gas (CNG) | E5: London Underground | F5: Coach | H5: Australia | I5: 4
B6: First class | D6: Liquid Petroleum Gas (LPG) | H6: Austria | I6: 5
D7: Plug-in Hybrid EV | H7: Belgium | I7: 6
D8: Battery EV | H8: Brazil | I8: 7
D9: Unknown | H9: Canada | I9: 8
H10: Chile | I10: 9
H11: China | I11: 10
H12: Colombia | I12: 11
H13: Costa Rica | I13: 12
H14: Czech Republic | I14: 13
H15: Egypt | I15: 14
H16: Fiji | I16: 15
H17: France | I17: 16
H18: Germany | I18: 17
H19: Greece | I19: 18
H20: Hong Kong, China | I20: 19
H21: India | I21: 20
H22: Indonesia | I22: 21
H23: Ireland | I23: 22
H24: Israel | I24: 23
H25: Italy | I25: 24
H26: Japan | I26: 25
H27: Jordan | I27: 26
H28: Korea | I28: 27
H29: Macau, China | I29: 28
H30: Malaysia | I30: 29
H31: Maldives | I31: 30
H32: Mexico | I32: 31
H33: Netherlands | I33: 32
H34: New Zealand | I34: 33
H35: Oman | I35: 34
H36: Panama | I36: 35
H37: Peru | I37: 36
H38: Philippines | I38: 37
H39: Poland | I39: 38
H40: Portugal | I40: 39
H41: Qatar | I41: 40
H42: Romania | I42: 41
H43: Russian Federation | I43: 42
H44: Saudi Arabia | I44: 43
H45: Singapore | I45: 44
H46: Slovak Republic | I46: 45
H47: South Africa | I47: 46
H48: Spain | I48: 47
H49: Switzerland | I49: 48
H50: Taiwan, China | I50: 49
H51: Thailand | I51: 50
H52: Turkey
H53: United Arab Emirates
H54: United States
H55: Vietnam
